fUSD/lending_fUSD_20240214
["ID","MTS","AMOUNT","RATE_DAILY","PERIOD"]
[313985600,1707911444202,-151.22241652,0.0003799,2]
[313985601,1707911444212,-5055.29818565,0.00037998,4]
[313985602,1707911444222,-100000.0,0.00038,18]
[313985603,1707911444232,-73393.4565326,0.00038,2]
[313985604,1707911444242,-300.0,0.00038,39]
[313985605,1707911444252,-213.91073973,0.00038,4]
[313985606,1707911444262,-844.18627973,0.00038,2]
[313985607,1707911444271,-225.81899865,0.00038,20]
[313985608,1707911444281,-152.01937746,0.00038,2]
[313985609,1707911444291,-11102.0,0.00038,4]
[313985610,1707911444301,-903.69452,0.0003805,2]
[313985611,1707911444311,-2675.2528581,0.00038058,2]
[313985612,1707911444320,-1861.33867425,0.00038067,4]
[313985613,1707911444331,-161.28536214,0.00038068,4]
[313985614,1707911444340,-250.02461482,0.00038068,4]
[313985616,1707911444350,-621.64674583,0.00038068,4]
[313985618,1707911444360,-150.0,0.00038068,2]
[313985620,1707911444370,-234.39699553,0.00038069,4]
[313985621,1707911444380,-175.05439154,0.00038069,4]
[313985623,1707911444389,-246.12271657,0.00038069,4]
[313985626,1707911444399,-163.02538152,0.00038069,4]
[313985627,1707911444409,-358.39820342,0.0003807,4]
[313985629,1707911444419,-200.0,0.000381,30]
[313985632,1707911444430,-1000.0,0.000381,2]
[313985634,1707911444439,-151.021414,0.00038148,14]
[313985635,1707911444449,-6015.97454914,0.00038169,2]
[313985636,1707911444459,-153.97,0.000382,3]
[313985637,1707911444469,-153.97,0.000382,3]
[313985638,1707911444478,-153.97,0.000382,3]
[313985639,1707911444488,-153.97,0.000382,3]
[313985640,1707911444497,-153.97,0.000382,3]
[313985641,1707911444507,-153.97,0.000382,3]
[313985642,1707911444516,-153.97,0.000382,3]
[313985643,1707911444525,-1000.0,0.00038202,10]
[313985644,1707911444535,-1000.0,0.00038202,10]
[313985645,1707911444544,-2106.05168316,0.00038261,11]
[313985646,1707911444555,-207.0,0.00038294,14]
[313985647,1707911444565,-200.0,0.000383,30]
[313985648,1707911444576,-1250.0,0.00038356,2]
[313985649,1707911444586,-335.40155864,0.00038356,7]
[313985650,1707911444595,-1147.83,0.00038356,7]
[313985651,1707911444605,-5946.44,0.00038356,7]
[313985652,1707911444614,-1147.83,0.00038356,7]
[313985653,1707911444624,-5946.44,0.00038356,7]
[313985654,1707911444633,-1147.83,0.00038356,7]
[313985655,1707911444643,-5946.44,0.00038356,7]
[313985656,1707911444653,-1147.83,0.00038356,7]
[313985657,1707911444662,-500.0,0.00038356,7]
[313985658,1707911444671,-5946.44,0.00038356,7]
[313985659,1707911444681,-1147.83,0.00038356,7]
[313985660,1707911444690,-522.80548496,0.00038356,7]
[313985661,1707911444699,-5946.44,0.00038356,7]
[313985662,1707911444709,-1147.83,0.00038356,7]
[313985663,1707911444718,-5946.44,0.00038356,7]
[313985664,1707911444728,-934.07,0.00038356,7]
[313985665,1707911444738,-5946.44,0.00038356,7]
[313985666,1707911444748,-934.07,0.00038356,7]
[313985667,1707911444758,-5946.44,0.00038356,7]
[313985668,1707911444767,-934.07,0.00038356,7]
[313985669,1707911444776,-1147.83,0.00038356,7]
[313985670,1707911444786,-934.07,0.00038356,7]
[313985671,1707911444795,-1147.83,0.00038356,7]
[313985672,1707911444805,-1115.84,0.00038356,7]
[313985673,1707911444814,-1732.12,0.00038356,7]
[313985674,1707911444823,-934.07,0.00038356,7]
[313985675,1707911444833,-1115.84,0.00038356,7]
[313985676,1707911444842,-610.41860466,0.00038356,7]
[313985677,1707911444853,-1732.12,0.00038356,7]
[313985678,1707911444862,-934.07,0.00038356,7]
[313985679,1707911444873,-1115.84,0.00038356,7]
[313985680,1707911444882,-1732.12,0.00038356,7]
[313985681,1707911444893,-1732.12,0.00038356,7]
[313985682,1707911444902,-2272.54,0.00038356,7]
[313985683,1707911444912,-500.0,0.00038356,7]
[313985684,1707911444922,-1732.12,0.00038356,7]
[313985685,1707911444931,-500.0,0.00038356,2]
[313985686,1707911444940,-500.0,0.00038356,7]
[313985687,1707911444950,-1732.12,0.00038356,7]
[313985688,1707911444959,-500.0,0.00038356,2]
[313985689,1707911444969,-285.94597196,0.00038356,7]
[313985690,1707911444979,-1732.12,0.00038356,7]
[313985691,1707911444988,-660.92,0.00038356,7]
[313985692,1707911444998,-2272.54,0.00038356,7]
[313985693,1707911445007,-565.36238069,0.00038356,2]
[313985694,1707911445017,-660.92,0.00038356,7]
[313985695,1707911445027,-2272.54,0.00038356,7]
[313985696,1707911445036,-210.01251975,0.00038356,7]
[313985697,1707911445049,-660.92,0.00038356,7]
[313985698,1707911445061,-2272.54,0.00038356,7]
[313985699,1707911445070,-660.92,0.00038356,7]
[313985700,1707911445082,-2272.54,0.00038356,7]
[313985701,1707911445092,-660.92,0.00038356,7]
[313985702,1707911445102,-3932.27,0.00038356,7]
[313985703,1707911445113,-660.92,0.00038356,7]
[313985704,1707911445124,-3932.27,0.00038356,7]
[313985705,1707911445133,-2272.54,0.00038356,7]
[313985706,1707911445143,-500.0,0.00038356,7]
[313985707,1707911445153,-660.92,0.00038356,7]
[313985708,1707911445163,-3932.27,0.00038356,7]
[313985709,1707911445173,-2272.54,0.00038356,7]
[313985710,1707911445183,-3932.27,0.00038356,7]
[313985711,1707911445193,-660.92,0.00038356,7]
[313985712,1707911445203,-2272.54,0.00038356,7]
[313985713,1707911445213,-522.94404616,0.00038356,7]
[313985714,1707911445223,-500.0,0.00038356,7]
[313985715,1707911445233,-500.0,0.00038356,7]
[313985716,1707911445243,-500.0,0.00038356,3]
[313985717,1707911445253,-1076.94,0.00038356,7]
[313985718,1707911445264,-500.0,0.00038356,7]
[313985719,1707911445273,-500.0,0.00038356,3]
[313985720,1707911445283,-1076.94,0.00038356,7]
[313985721,1707911445293,-500.0,0.00038356,7]
[313985722,1707911445304,-500.0,0.00038356,7]
[313985723,1707911445314,-1076.94,0.00038356,7]
[313985724,1707911445324,-500.0,0.00038356,7]
[313985725,1707911445334,-500.0,0.00038356,7]
[313985726,1707911445345,-509.26306197,0.00038356,7]
[313985727,1707911445354,-527.79846939,0.00038356,3]
[313985728,1707911445364,-500.0,0.00038356,7]
[313985729,1707911445374,-1076.94,0.00038356,7]
[313985730,1707911445383,-900.56,0.00038356,7]
[313985731,1707911445508,-1076.94,0.00038356,7]
[313985732,1707911445530,-518.23655875,0.00038356,7]
[313985733,1707911445541,-900.56,0.00038356,7]
[313985734,1707911445555,-1076.94,0.00038356,7]
[313985735,1707911445566,-900.56,0.00038356,7]
[313985736,1707911445576,-873.64,0.00038356,7]
[313985737,1707911445587,-873.64,0.00038356,7]
[313985738,1707911445597,-1076.94,0.00038356,7]
[313985739,1707911445607,-873.64,0.00038356,7]
[313985740,1707911445618,-515.80787033,0.00038356,7]
[313985741,1707911445628,-3846.73,0.00038356,7]
[313985742,1707911445638,-1076.94,0.00038356,7]
[313985743,1707911445648,-873.64,0.00038356,7]
[313985744,1707911445659,-1076.94,0.00038356,7]
[313985745,1707911445668,-3846.73,0.00038356,7]
[313985746,1707911445678,-1076.94,0.00038356,7]
[313985747,1707911445687,-873.64,0.00038356,7]
[313985748,1707911445698,-500.0,0.00038356,7]
[313985749,1707911445708,-3846.73,0.00038356,7]
[313985750,1707911445717,-179.68576274,0.00038356,7]
[313985751,1707911445727,-500.0,0.00038356,7]
[313985752,1707911445737,-873.64,0.00038356,7]
[313985753,1707911445747,-3846.73,0.00038356,7]
[313985754,1707911445757,-873.64,0.00038356,7]
[313985755,1707911445766,-500.0,0.00038356,7]
[313985756,1707911445775,-3846.73,0.00038356,7]
[313985757,1707911445785,-873.64,0.00038356,7]
[313985758,1707911445794,-3846.73,0.00038356,7]
[313985759,1707911445806,-873.64,0.00038356,7]
[313985760,1707911445817,-500.0,0.00038356,7]
[313985761,1707911445827,-873.64,0.00038356,7]
[313985762,1707911445836,-3846.73,0.00038356,7]
[313985763,1707911445845,-500.0,0.00038356,7]
[313985764,1707911445855,-500.0,0.00038356,7]
[313985765,1707911445864,-1396.78,0.00038356,7]
[313985766,1707911445873,-500.0,0.00038356,7]
[313985767,1707911445883,-1396.78,0.00038356,7]
[313985768,1707911445891,-3932.27,0.00038356,7]
[313985769,1707911445901,-500.0,0.00038356,7]
[313985770,1707911445910,-1396.78,0.00038356,7]
[313985771,1707911445919,-3932.27,0.00038356,7]
[313985772,1707911445929,-565.5457597,0.00038356,7]
[313985773,1707911445938,-1396.78,0.00038356,7]
[313985774,1707911445947,-903.69453,0.0003839,2]
[313985775,1707911445957,-13163.73746954,0.00038395,8]
[313985776,1707911445966,-1000.0,0.000384,60]
[313985777,1707911445975,-200.0,0.000384,13]
[313985778,1707911445985,-660.92,0.00038434,7]
[313985779,1707911445994,-2272.54,0.00038434,7]
[313985780,1707911446003,-8439.7491442,0.00038435,2]
[313985781,1707911446012,-9096.2394137,0.00038435,2]
[313985782,1707911446021,-569.1534644,0.00038435,2]
[313985783,1707911446030,-189.7178214,0.00038435,2]
[313985784,1707911446039,-362.4214002,0.00038435,2]
[313985785,1707911446049,-306.79485589,0.00038437,2]
[313985786,1707911446058,-155.0,0.00038438,4]
[313985787,1707911446066,-221.56319813,0.00038438,30]
[313985788,1707911446075,-155.0,0.00038438,4]
[313985789,1707911446085,-155.0,0.00038438,4]
[313985790,1707911446096,-151.021414,0.00038448,14]
[313985791,1707911446105,-288.58,0.00038461,2]
[313985792,1707911446116,-934.07,0.00038464,7]
[313985793,1707911446126,-3846.73,0.00038464,7]
[313985794,1707911446135,-857.04290281,0.00038471,8]
[313985795,1707911446145,-1181.61164064,0.00038483,2]
[313985796,1707911446155,-2881.58083006,0.00038484,11]
[313985797,1707911446164,-200.0,0.000385,30]
[313985799,1707911446173,-2106.05168316,0.00038535,12]
[313985801,1707911446183,-1000.0,0.00038572,30]
[313985803,1707911446192,-359.74958,0.0003863,14]
[313985804,1707911446202,-151.021414,0.00038648,14]
[313985806,1707911446211,-200.0,0.000387,30]
[313985808,1707911446221,-1076.94,0.00038734,7]
[313985810,1707911446231,-873.64,0.00038734,7]
[313985812,1707911446241,-7609.889101,0.00038735,2]
[313985814,1707911446250,-1604.235509,0.00038735,2]
[313985816,1707911446259,-243.056569,0.00038735,2]
[313985818,1707911446269,-289.497665,0.00038735,2]
[313985819,1707911446278,-1604.235509,0.00038735,2]
[313985820,1707911446287,-151.021414,0.00038748,14]
[313985821,1707911446298,-1732.12,0.00038772,7]
[313985822,1707911446309,-190.74165075,0.00038773,12]
[313985823,1707911446318,-1115.84,0.00038789,7]
[313985824,1707911446328,-900.56,0.00038789,7]
[313985825,1707911446338,-5946.44,0.00038799,7]
[313985826,1707911446347,-1147.83,0.00038799,7]
[313985827,1707911446357,-36006.8883438,0.000388,4]
[313985828,1707911446366,-409.0,0.000388,37]
[313985829,1707911446386,-1030.0,0.000388,39]
[313985830,1707911446404,-2106.05168316,0.00038808,12]
[313985831,1707911446422,-235.603907,0.000389,30]
[313985832,1707911446443,-17500.0,0.000389,7]
[313985833,1707911446459,-4034.51017257,0.000389,15]
[313985834,1707911446479,-200.0,0.000389,13]
[313985835,1707911446497,-204.24735291,0.000389,2]
[313985836,1707911446515,-621.34164073,0.000389,2]
[313985837,1707911446533,-473.3904156,0.000389,2]
[313985838,1707911446551,-270.9569148,0.000389,2]
[313985839,1707911446570,-2000.0,0.000389,2]
[313985840,1707911446593,-1076.94,0.00038925,7]
[313985841,1707911446605,-873.64,0.00038925,7]
[313985842,1707911446621,-150.0,0.00038933,2]
[313985843,1707911446638,-151.021414,0.00038948,14]
[313985846,1707911446651,-6808.5004724,0.00038963,2]
[313985848,1707911446666,-7411.4033161,0.00038963,2]
[313985851,1707911446680,-362.4214002,0.00038963,2]
[313985854,1707911446694,-934.07,0.00038969,7]
[313985856,1707911446713,-3846.73,0.00038969,7]
[313985859,1707911446728,-9343.59398697,0.0003897,2]
[313985861,1707911446742,-189.7178214,0.00038973,2]
[313985864,1707911446756,-362.4214002,0.00038973,2]
[313985867,1707911446770,-1732.12,0.00038978,7]
[313985869,1707911446785,-728.91141627,0.0003898,2]
[313985872,1707911446800,-150.0,0.0003898,2]
[313985874,1707911446814,-200.0,0.00038987,3]
[313985877,1707911446829,-1115.84,0.00038989,7]
[313985880,1707911446843,-900.56,0.00038989,7]
[313985882,1707911446858,-106937.691268,0.0003899,3]
[313985885,1707911446873,-535.59,0.0003899,30]
[313985887,1707911446887,-215.82244978,0.00038998,4]
[313985890,1707911446902,-660.92,0.00038998,7]
[313985892,1707911446916,-2272.54,0.00038998,7]
[313985894,1707911446930,-10000.0,0.00038999,30]
[313985895,1707911446945,-5946.44,0.00038999,7]
[313985896,1707911446960,-1147.83,0.00038999,7]
[313985897,1707911446977,-934.07,0.00038999,7]
[313985898,1707911446992,-1732.12,0.00038999,7]
[313985899,1707911447005,-660.92,0.00038999,7]
[313985900,1707911447020,-2272.54,0.00038999,7]
[313985901,1707911447036,-3846.73,0.00038999,7]
[313985902,1707911447053,-140656.65237232,0.00038999,3]
[313985903,1707911447068,-300.424947,0.00038999,3]
[313985904,1707911447083,-100000.0,0.00039,19]
[313985905,1707911447098,-155.0,0.00039,5]
[313985906,1707911447114,-3494.64179572,0.00039,2]
[313985907,1707911447130,-2220.17575713,0.00039,4]
[313985908,1707911447145,-10000.0,0.00039,2]
[313985909,1707911447160,-200.0,0.00039,12]
[313985910,1707911447176,-300.0,0.00039,40]
[313985911,1707911447190,-500.0,0.00039,2]
[313985912,1707911447205,-4500.0,0.00039,3]
[313985913,1707911447219,-203.55959494,0.00039,7]
[313985914,1707911447234,-199.99999901,0.00039,9]
[313985915,1707911447248,-3502.51,0.00039,7]
[313985916,1707911447264,-300.0,0.00039,5]
[313985917,1707911447279,-150.0,0.00039,15]
[313985918,1707911447294,-150.0,0.00039,15]
[313985919,1707911447312,-150.0,0.00039,15]
[313985920,1707911447326,-150.0,0.00039,15]
[313985921,1707911447341,-150.0,0.00039,15]
[313985922,1707911447356,-150.0,0.00039,15]
[313985923,1707911447371,-150.0,0.00039,15]
[313985924,1707911447387,-150.0,0.00039,15]
[313985925,1707911447402,-150.0,0.00039,15]
[313985926,1707911447417,-150.0,0.00039,15]
[313985927,1707911447433,-150.0,0.00039,15]
[313985928,1707911447448,-150.0,0.00039,15]
[313985929,1707911447464,-150.0,0.00039,15]
[313985930,1707911447479,-150.0,0.00039,15]
[313985931,1707911447494,-150.0,0.00039,15]
[313985932,1707911447511,-150.0,0.00039,15]
[313985933,1707911447526,-150.0,0.00039,15]
[313985934,1707911447542,-150.0,0.00039,15]
[313985935,1707911447561,-150.0,0.00039,15]
[313985936,1707911447579,-169.44889846,0.00039,15]
[313985937,1707911447595,-177.3,0.00039,2]
[313985938,1707911447610,-3000.0,0.00039,37]
[313985939,1707911447625,-3000.0,0.0003901,37]
[313985940,1707911447641,-903.69453,0.0003901,2]
[313985941,1707911447656,-300.0,0.00039019,2]
[313985942,1707911447672,-300.0,0.00039019,2]
[313985943,1707911447686,-300.0,0.00039019,2]
[313985944,1707911447703,-300.0,0.00039019,2]
[313985945,1707911447719,-300.0,0.00039019,2]
[313985946,1707911447733,-300.0,0.00039019,2]
[313985947,1707911447750,-300.0,0.00039019,2]
[313985948,1707911447765,-5477.23002,0.0003902,37]
[313985949,1707911447969,-1076.94,0.00039051,7]
[313985950,1707911447992,-873.64,0.00039051,7]
[313985951,1707911448015,-5177.2518006,0.00039072,2]
[313985952,1707911448024,-2106.05168316,0.00039081,12]
[313985953,1707911448034,-260.42,0.00039083,2]
[313985954,1707911448044,-151.22241652,0.00039084,3]
[313985955,1707911448055,-5726.5672185,0.00039105,2]
[313985956,1707911448064,-1000.0,0.00039108,2]
[313985957,1707911448074,-151.021419,0.00039148,19]
[313985958,1707911448083,-189.7178214,0.00039181,2]
[313985959,1707911448092,-528189.52278079,0.000392,5]
[313985960,1707911448626,-4995.69082373,0.000392,5]
[313985961,1707911448637,-9563.3834845,0.000392,5]
[313985962,1707911448649,-3570.21015893,0.000392,5]
[313985963,1707911449030,-2972.40560035,0.00038356,7]
[313985964,1707911449042,-959.86439965,0.00038356,7]
[313985965,1707911449054,-1396.78,0.00038356,7]
[313985966,1707911449063,-697.05668026,0.00038356,7]
[313985967,1707911449242,-699.72331974,0.00038356,7]
[313985968,1707911449252,-139.10388756,0.00038356,7]
[313985969,1707911449282,-322.23160135,0.00038356,7]
[313985970,1707911449294,-1898.34451109,0.00038356,7]
[313985971,1707911449306,-152.4837942,0.00038356,7]
[313985972,1707911449317,-347.5162058,0.00038356,7]
[313985973,1707911449326,-668.22161741,0.00038464,7]
[313985974,1707911449343,-3264.04838259,0.00038464,7]
[313985975,1707911449352,-2576.01694408,0.00038969,7]
[313985976,1707911449377,-467.15053025,0.00038356,7]
[313985977,1707911450347,-1892.52946975,0.00038356,7]
[313985978,1707911450357,-500.0,0.00038356,7]
[313985979,1707911450367,-500.0,0.00038356,7]
[313985980,1707911450377,-1524.34056115,0.00038356,7]
[313985981,1707911450397,-716.76476399,0.00038356,7]
[313985982,1707911450409,-118.57467486,0.00038356,7]
[313985983,1707911450419,-500.0,0.00038356,7]
[313985984,1707911450428,-2359.68,0.00038356,7]
[313985985,1707911450438,-2359.68,0.00038356,7]
[313985986,1707911450447,-500.0,0.00038356,7]
[313985987,1707911450456,-2359.68,0.00038356,7]
[313985988,1707911450466,-500.0,0.00038356,7]
[313985989,1707911450475,-2359.68,0.00038356,7]
[313985990,1707911450484,-500.0,0.00038356,7]
[313985991,1707911450493,-2359.68,0.00038356,7]
[313985992,1707911450503,-1396.78,0.00038464,7]
[313985993,1707911450512,-500.0,0.00038799,7]
[313985994,1707911450521,-1356.25305592,0.00038969,7]
[313985995,1707911450530,-1396.78,0.00038969,7]
[313985996,1707911450540,-3932.27,0.00038999,7]
[313985997,1707911450550,-500.0,0.00038999,7]
[313985998,1707911450560,-1396.78,0.00038999,7]
[313985999,1707911450572,-403340.85322213,0.000392,5]
[313986000,1707911450608,-9004.40526071,0.000392,5]
[313986001,1707911450620,-17930.49999999,0.000392,5]
[313986002,1707911450807,-500.0,0.00038356,7]
[313986003,1707911450817,-22042.67738189,0.000392,5]
[313986004,1707911450837,-1152.535788,0.000392,5]
[313986005,1707911450875,-11691.93687226,0.000392,5]
[313986006,1707911450888,-3018.85,0.000392,5]
[313986007,1707911450899,-12118.4154,0.000392,5]
[313986008,1707911470512,11775.17759237,0.00023,2]
[313986009,1707911470542,1242.22668517,0.00023,2]
[313986010,1707911470585,180000.0,0.00023,2]
[313986011,1707911470627,28592.74531041,0.00023,2]
[313986012,1707911470680,819880.01239617,0.00023,2]
[313986013,1707911470715,50000.0,0.00023,2]
[313986014,1707911496797,-157109.7242774,0.00023,2]
[313986016,1707911514252,117529.34958098,0.0002296,2]
[313986017,1707911631950,51072.14996287,0.00023,2]
[313986018,1707912431114,-498.26271088,0.00024895,2]
[313986019,1707912431137,-203.86503207,0.00024896,2]
[313986020,1707912431158,-300.0,0.00024899,2]
[313986021,1707912431358,-1250.0,0.00025,3]
[313986022,1707912431379,-207.24,0.0002593,2]
[313986023,1707912431401,-347.52,0.00026675,2]
[313986024,1707912431423,-200.0,0.00026787,2]
[313986025,1707912431444,-646.76,0.00026858,2]
[313986026,1707912431464,-155.2946353,0.0002686,2]
[313986027,1707912431483,-2069.38,0.00026911,2]
[313986028,1707912431504,-150.0,0.00026942,2]
[313986029,1707912431525,-89178.87152525,0.00026943,2]
[313986030,1707912562095,-202.41033406,0.00026942,2]
[313986031,1707912562250,-4985.69569249,0.00026943,2]
[313986032,1707912565138,-1580.58998235,0.00026943,2]
[313986033,1707912565158,-1646.75,0.00026944,2]
[313986034,1707912565182,-23900.0,0.00026944,2]
[313986035,1707912565203,-302.29,0.00026944,2]
[313986036,1707912565224,-250.0,0.00026983,2]
[313986037,1707912565246,-1300.0,0.00027,3]
[313986038,1707912565269,-500.0,0.00027004,2]
[313986039,1707912565293,-2000.0,0.00027026,2]
[313986040,1707912565314,-250.0,0.00027082,2]
[313986041,1707912565525,-423.04,0.0002718,2]
[313986042,1707912565546,-687.34,0.00027347,2]
[313986043,1707912565566,-161.86,0.00027397,2]
[313986044,1707912565587,-250.0,0.00027426,2]
[313986045,1707912565611,-154.08102147,0.00027434,2]
[313986046,1707912565633,-499.99,0.00027434,2]
[313986047,1707912565654,-8279.29,0.00027507,2]
[313986048,1707912565677,-155.18,0.00027526,2]
[313986049,1707912565699,-199.84,0.00027623,2]
[313986050,1707912565720,-184.39,0.00027623,2]
[313986051,1707912565740,-272.23636461,0.00027709,2]
[313986052,1707912565761,-155.18,0.00027885,2]
[313986053,1707912565783,-652.48,0.00027937,2]
[313986054,1707912565803,-693.93,0.00028052,2]
[313986055,1707912565823,-864.84,0.00028052,2]
[313986056,1707912565843,-4102.32511915,0.00028176,2]
[313986057,1707912565864,-207.24,0.00028194,2]
[313986058,1707912565885,-155.18,0.00028243,2]
[313986059,1707912565914,-155.25463852,0.00028273,2]
[313986060,1707912565934,-278.76,0.00028273,2]
[313986061,1707912565954,-621.97,0.00028273,2]
[313986062,1707912565974,-155.2437325,0.00028274,2]
[313986063,1707912565995,-466.1365239,0.00028275,2]
[313986064,1707912566016,-109744.6926175,0.00028275,2]
[313986065,1707912572095,-18618.87183942,0.00028275,2]
[313986066,1707912572131,-143299.34,0.00028275,2]
[313986067,1707912581246,2974.0,0.000248,2]
[313986068,1707912581890,2825.0,0.000248,2]
[313986098,1707912631380,-100621.88642432,0.00028275,2]
[313986100,1707912631392,-17560.66956358,0.00028275,2]
[313986102,1707912631404,-3238.74210225,0.00028275,2]
[313986104,1707912631602,-10293.2740613,0.00028275,2]
[313986105,1707912631614,-1653.71037969,0.00028275,2]
[313986106,1707912631682,-5871.2414557,0.00028275,2]
[313986107,1707912631693,-15964.01834191,0.00028275,2]
[313986108,1707912631704,-572.01503807,0.00028275,2]
[313986109,1707912631716,-667.8614337,0.00028275,2]
[313986110,1707912631727,-960.61039043,0.00028275,2]
[313986111,1707912631738,-1031.484528,0.00028275,2]
[313986112,1707912633032,-1572.09871997,0.00028275,2]
[313986113,1707912633091,-837.56202472,0.00028275,2]
[313986114,1707912633103,-827.67181923,0.00028275,2]
[313986115,1707912633112,-155.0,0.00028276,2]
[313986116,1707912633122,-155.15385093,0.00028276,2]
[313986117,1707912633131,-203.63910297,0.00028276,2]
[313986118,1707912633140,-749.82543363,0.00028276,2]
[313986119,1707912633152,-2315.36803596,0.00028276,2]
[313986120,1707912633210,-2245.0,0.00028276,2]
[313986121,1707912633222,-18875.15998187,0.00028276,2]
[313986149,1707912637446,-2219.73975257,0.00028276,2]
[313986150,1707912637458,-8073.76385189,0.00028276,2]
[313986151,1707912637469,-10444.13293377,0.00028276,2]
[313986152,1707912637486,-2764.50777474,0.00028276,2]
[313986153,1707912637498,-8018.08446395,0.00028276,2]
[313986154,1707912637521,-1700.325,0.00028276,2]
[313986155,1707912637563,-38848.23441398,0.00028276,2]
[313986156,1707912637574,-574.81472186,0.00028276,2]
[313986157,1707912637585,-1551.98459902,0.00028276,2]
[313986158,1707912637596,-350.1029994,0.00028276,2]
[313986159,1707912637608,-520.0,0.00028276,2]
[313986160,1707912637620,-1044.616485,0.00028276,2]
[313986161,1707912637631,-5162.19013587,0.00028276,2]
[313986162,1707912637651,-746.1535389,0.00028276,2]
[313986163,1707912637663,-741.27723955,0.00028276,2]
[313986164,1707912637675,-420.8888349,0.00028276,2]
[313986165,1707912637687,-313.89851893,0.00028276,2]
[313986166,1707912637707,-3958.18659232,0.00028276,2]
[313986167,1707912637716,-285.61170655,0.00028276,2]
[313986168,1707912637725,-247.71451766,0.00028276,2]
[313986169,1707912637735,-155.0,0.00028276,2]
[313986170,1707912637744,-537.98456549,0.00028276,2]
[313986171,1707912637754,-179.80496733,0.00028276,2]
[313986172,1707912637764,-155.0,0.00028276,2]
[313986173,1707912637773,-251.37817313,0.00028276,2]
[313986174,1707912637783,-219.38164633,0.00028276,2]
[313986175,1707912637792,-249.89532111,0.00028276,2]
[313986176,1707912637801,-637.00641291,0.00028276,2]
[313986177,1707912637810,-159.30807019,0.00028276,2]
[313986178,1707912637819,-413.72986441,0.00028276,2]
[313986179,1707912637829,-307.23145274,0.00028276,2]
[313986180,1707912637838,-364.44524763,0.00028276,2]
[313986181,1707912637848,-22500.42,0.0002838,2]
[313986182,1707912637858,-2889.3297,0.0002838,2]
[313986185,1707912637867,-6596.42006444,0.0002848,7]
[313986186,1707912637876,-6530.54678062,0.0002848,7]
[313986189,1707912637886,-5629.20028612,0.0002848,7]
[313986190,1707912637895,-150.0,0.00028499,2]
[313986192,1707912637905,-155.18,0.00028602,2]
[313986194,1707912637917,-202.11,0.00028767,2]
[313986196,1707912637926,-423.04,0.00028824,2]
[313986197,1707912637935,-155.18,0.0002896,2]
[313986198,1707912637944,-154.08102145,0.00028977,2]
[313986199,1707912637954,-1350.0,0.00029,3]
[313986200,1707912637963,-207.0,0.00029093,2]
[313986201,1707912637972,-205.0,0.00029093,2]
[313986202,1707912637983,-176.0085,0.00029132,2]
[313986203,1707912637992,-1370.8871,0.00029162,2]
[313986204,1707912638001,-4102.32511909,0.00029296,2]
[313986205,1707912638010,-250.0,0.00029304,2]
[313986206,1707912638020,-176.56149042,0.000298,2]
[313986207,1707912638029,-177.78732625,0.000299,2]
[313986208,1707912638038,-360.22491493,0.0003,2]
[313986209,1707912638047,-500.0,0.0003,2]
[313986210,1707912638056,-347.52,0.00030009,2]
[313986211,1707912638065,-73392.57907739,0.00030413,4]
[313986212,1707912638075,-21265.63524274,0.00030414,4]
[313986213,1707912638821,-879.18212498,0.00030414,4]
[313986214,1707912638856,-292.93982734,0.00030414,4]
[313986215,1707912638867,-567.99743166,0.00030414,4]
[313986216,1707912638878,-504.21309168,0.00030414,4]
[313986221,1707912639998,-6793.30654664,0.0002848,7]